bitfinex-derivatives/quotes_SOLF0:USTF0_20250911
["timestamp","ask_amount","ask_price","bid_price","bid_amount"]
[1757576670939,7.22899092,223.0,222.94,7.08094588]
[1757576671651,0.02899092,223.0,222.94,7.08094588]
[1757576673655,0.02899092,223.0,222.94,8.73725346]
[1757576673846,1.65630758,223.1,222.98,7.05]
[1757576674154,1.65630758,223.1,223.0,7.05]
[1757576674450,2.0,223.11,223.0,7.05]
[1757576674850,2.0,223.11,223.0,8.70630758]
[1757576676356,2.0,223.11,223.0,7.05]
[1757576676547,1.65630758,223.1,223.0,7.05]
[1757576679559,9.2,223.11,223.0,7.05]
[1757576679753,1.65630758,223.09,223.0,7.05]
[1757576680454,7.2,223.08,223.0,7.05]
[1757576680658,7.2,223.08,223.01,109.02]
[1757576680957,7.2,223.08,223.02,109.02]
[1757576681256,7.2,223.08,223.02,116.07]
[1757576681658,7.2,223.08,223.02,7.05]
[1757576681855,8.85630758,223.09,223.03,109.02]
[1757576682658,1.65630758,223.06,223.04,109.02]
[1757576682858,7.2,223.05,223.04,109.02]
[1757576683254,1.65630758,223.06,223.04,109.02]
[1757576683958,8.85630758,223.06,223.04,109.02]
[1757576684155,1.65630758,223.06,223.05,7.05]
[1757576684959,7.2,223.05,222.96,7.05]
[1757576685256,1.65630758,223.02,222.98,7.05]
[1757576686262,1.65630758,223.02,222.97,109.02]
[1757576686558,1.65630758,223.02,222.98,7.05]
[1757576686858,1.65630758,223.02,222.97,109.02]
[1757576687058,1.65630758,223.02,222.98,7.05]
[1757576687250,1.65630758,223.02,222.97,109.02]
[1757576687559,1.65630758,223.02,222.98,7.05]
[1757576688059,1.65630758,223.02,222.97,109.02]
[1757576688261,1.68966372,223.02,222.98,0.02850021]
[1757576688455,1.68966372,223.02,222.99,7.05]
[1757576689659,8.88966372,223.02,222.99,7.05]
[1757576692061,7.23335614,223.02,222.99,7.05]
[1757576692356,7.2,223.01,222.98,0.02850021]
[1757576692557,8.85630758,222.99,222.98,109.10850021]
[1757576692757,7.2,222.99,222.98,109.10850021]
[1757576692950,8.85630758,222.99,222.98,109.10850021]
[1757576694360,0.03335614,223.02,222.98,116.15850021]
[1757576694361,7.23335614,223.02,222.98,116.15850021]
[1757576694560,8.88966372,223.02,222.98,109.10850021]
[1757576694859,8.88966372,223.02,222.99,7.05]
[1757576696859,1.68966372,223.02,222.99,7.05]
[1757576697862,9.29966372,223.02,222.99,7.05]
[1757576698964,7.61,223.01,222.98,109.10850021]
[1757576699258,1.68966372,223.02,222.98,109.10850021]
[1757576699462,1.68966372,223.02,222.98,0.02850021]
[1757576699764,9.26630758,222.99,222.98,0.02850021]
[1757576702770,7.61,223.01,222.98,7.53850021]
[1757576702960,0.03335614,223.02,222.99,7.51]
[1757576703161,9.29966372,223.02,222.99,7.51]
[1757576704466,0.03335614,223.02,222.99,7.51]
[1757576705166,0.03335614,223.02,223.01,7.51]
[1757576712772,9.61,223.11,223.01,7.51]
[1757576712974,9.61,223.11,223.04,7.51]
[1757576713973,9.61,223.11,223.05,0.03231879]
[1757576717177,2.0,223.11,223.05,0.03231879]
[1757576717580,2.0,223.11,223.06,7.51]
[1757576717878,2.0,223.11,223.05,0.03231879]
[1757576718075,2.0,223.11,223.06,7.51]
[1757576718276,2.0,223.11,223.05,0.03231879]
[1757576718476,2.0,223.11,223.06,7.51]
[1757576719386,2.0,223.11,223.05,0.03231879]
[1757576719681,2.0,223.11,223.06,7.51]
[1757576720082,2.0,223.11,223.05,0.03231879]
[1757576720478,2.0,223.11,223.06,7.51]
[1757576720983,2.0,223.11,223.05,0.03231879]
[1757576721480,2.0,223.11,223.06,7.51]
[1757576721984,2.0,223.11,223.05,0.03231879]
[1757576722183,2.0,223.11,223.06,7.51]
[1757576722577,2.0,223.11,223.08,7.51]
[1757576722782,2.0,223.11,223.1,7.51]
[1757576722983,1.81948718,223.11,223.1,9.16630758]
[1757576723183,1.81948718,223.11,223.1,7.51]
[1757576723873,1.81948718,223.11,223.1,9.16630758]
[1757576724579,1.81948718,223.11,223.1,118.34630758]
[1757576726484,7.61,223.23,223.11,5.95]
[1757576726686,7.61,223.23,223.16,7.60630758]
[1757576726885,7.61,223.23,223.16,1.65630758]
[1757576727084,7.61,223.23,223.17,0.03157265]
[1757576748301,7.61,223.23,223.17,5.96157265]
[1757576752303,7.61,223.23,223.17,115.06157265]
[1757576757006,0.0289652,223.22,223.17,115.06157265]
[1757576757199,7.0289652,223.22,223.18,5.93]
[1757576757602,7.0,223.21,223.18,5.93]
[1757576758503,7.0,223.21,223.17,109.13157265]
[1757576758704,7.0,223.21,223.18,5.93]
[1757576759104,0.0289652,223.22,223.17,109.13157265]
[1757576759308,0.0289652,223.22,223.18,5.93]
[1757576759605,7.0289652,223.22,223.18,5.93]
[1757576759803,7.0289652,223.22,223.17,109.13157265]
[1757576760307,0.0289652,223.22,223.17,109.13157265]
[1757576760507,0.0289652,223.22,223.18,5.93]
[1757576764111,0.0289652,223.22,223.2,5.93]
[1757576764511,0.0289652,223.22,223.2,6.37]
[1757576766011,0.0289652,223.22,223.21,5.93]
[1757576784028,9.0,223.31,223.22,0.4710348]
[1757576784324,9.0,223.31,223.23,108.92]
[1757576784728,9.0,223.31,223.23,114.85]
[1757576785026,9.0,223.31,223.24,5.93]
[1757576785232,9.0,223.31,223.25,0.0284458]
[1757576787528,9.0,223.31,223.26,5.93]
[1757576787728,9.0,223.31,223.25,0.0284458]
[1757576787925,9.0,223.31,223.26,5.93]
[1757576788233,9.0,223.31,223.25,0.0284458]
[1757576788630,9.0,223.31,223.26,5.93]
[1757576788929,2.0,223.31,223.25,5.9584458]
[1757576790432,2.0,223.31,223.26,18.78]
[1757576790623,2.0,223.31,223.27,5.93]
[1757576790823,2.0,223.31,223.26,18.78]
[1757576791131,2.0,223.31,223.27,5.93]
[1757576791833,7.25,223.3,223.28,33.3]
[1757576792133,2.0,223.31,223.28,33.3]
[1757576792334,7.25,223.3,223.28,33.3]
[1757576792733,2.0,223.31,223.28,33.3]
[1757576793034,7.25,223.3,223.28,33.3]
[1757576794239,8.90141296,223.3,223.28,33.3]
[1757576795739,2.0,223.31,223.28,33.3]
[1757576795940,2.0,223.31,223.29,5.93]
[1757576797541,2.0,223.31,223.29,6.37]
[1757576798841,2.0,223.31,223.29,14.01242724]
[1757576799041,2.0,223.31,223.3,5.93]
[1757576801649,1.65141296,223.36,223.3,5.93]
[1757576802050,1.65141296,223.37,223.3,5.93]
[1757576802246,1.65141296,223.37,223.31,0.03098869]
[1757576802451,7.25,223.39,223.31,0.03098869]
[1757576802452,7.25,223.5,223.32,5.93]
[1757576802651,1.65141296,223.37,223.31,0.03098869]
[1757576802853,1.65141296,223.37,223.31,5.93]
[1757576803053,7.25,223.36,223.33,5.93]
[1757576803253,7.25,223.36,223.34,108.94]
[1757576803552,7.25,223.39,223.35,5.93]
[1757576803852,2.0,223.51,223.36,16.16]
[1757576803853,1.65141296,223.37,223.36,16.16]
[1757576804252,7.25,223.38,223.36,16.16]
[1757576804450,1.65141296,223.42,223.36,16.16]
[1757576804648,1.65141296,223.43,223.37,5.93]
[1757576804850,1.65141296,223.46,223.37,5.93]
[1757576805049,1.65141296,223.46,223.36,16.16]
[1757576805050,1.65141296,223.46,223.39,5.93]
[1757576805448,7.25,223.48,223.39,5.93]
[1757576805748,1.65141296,223.46,223.39,5.93]
[1757576806154,7.25,223.48,223.39,5.93]
[1757576806356,1.65141296,223.46,223.39,5.93]
[1757576807056,7.25,223.48,223.39,5.93]
[1757576807251,1.65141296,223.46,223.39,5.93]
[1757576807556,7.25,223.48,223.39,5.93]
[1757576807756,1.65141296,223.46,223.39,5.93]
[1757576809852,8.90141296,223.45,223.39,5.93]
[1757576810157,8.90141296,223.42,223.4,35.62]
[1757576810354,8.90141296,223.42,223.4,35.65075677]
[1757576812259,7.25,223.42,223.4,41.58075677]
[1757576812458,8.90141296,223.43,223.4,41.58075677]
[1757576812757,7.25,223.43,223.4,5.96075677]
[1757576812958,8.90141296,223.43,223.41,19.84]
[1757576813159,7.25,223.42,223.4,0.03075677]
[1757576813354,7.25,223.42,223.37,38.66]
[1757576813560,8.90141296,223.38,223.37,38.66]
[1757576813760,7.25,223.38,223.37,38.66]
[1757576813961,8.90141296,223.38,223.37,38.66]
[1757576816661,1.65141296,223.38,223.35,0.02850083]
[1757576816960,1.65141296,223.38,223.31,109.32]
[1757576817266,1.65141296,223.32,223.31,109.32]
[1757576817667,9.09141296,223.32,223.31,109.32]
[1757576817968,1.65141296,223.32,223.31,115.24]
[1757576818268,1.65141296,223.32,223.31,109.32]
[1757576818469,1.65141296,223.32,223.31,109.34]
[1757576819966,9.09141296,223.32,223.29,0.03389611]
[1757576820165,1.65141296,223.32,223.3,109.32]
[1757576820469,1.68338422,223.34,223.31,5.92]
[1757576823665,0.03197126,223.34,223.31,5.92]
[1757576824363,0.03197126,223.34,223.31,6.36]
[1757576824570,7.44,223.45,223.34,5.89]
[1757576824867,9.09141296,223.49,223.39,5.89]
[1757576825164,9.09141296,223.49,223.4,67.98]
[1757576825672,7.44,223.49,223.42,0.03378937]
[1757576825871,7.44,223.47,223.42,0.03378937]
[1757576826172,9.09141296,223.5,223.44,5.89]
[1757576826572,7.44,223.5,223.44,5.89]
[1757576826974,2.0,223.51,223.44,5.89]
[1757576830680,7.44,223.48,223.44,5.89]
[1757576830876,7.44,223.48,223.45,7.5]
[1757576831477,7.44,223.48,223.44,5.89]
[1757576831677,1.68040826,223.49,223.45,6.08]
[1757576831882,7.44,223.48,223.45,6.08]
[1757576832078,7.44,223.45,223.42,12.91378937]
[1757576832282,1.65141296,223.43,223.42,12.91378937]
[1757576832584,1.68040826,223.49,223.43,5.89]
[1757576833082,0.0289953,223.49,223.43,5.89]
[1757576834883,1.68040826,223.49,223.43,5.89]
[1757576835185,7.44,223.48,223.44,9.16]
[1757576835786,7.44,223.48,223.44,15.05]
[1757576837579,7.44,223.48,223.42,0.03378937]
[1757576837784,7.44,223.45,223.43,18.28]
[1757576837980,7.44,223.45,223.42,0.03378937]
[1757576838185,1.65141296,223.46,223.42,19.27378937]
[1757576838485,7.44,223.45,223.42,19.27378937]
[1757576839485,1.65141296,223.46,223.42,25.16378937]
[1757576839685,9.09141296,223.46,223.42,25.16378937]
[1757576840588,1.65141296,223.46,223.43,5.89]
[1757576841889,9.09141296,223.46,223.43,5.89]
[1757576843591,9.09141296,223.46,223.42,19.27378937]
[1757576843783,1.65141296,223.46,223.42,19.27378937]
[1757576844188,1.65141296,223.46,223.42,0.03378937]
[1757576844991,7.44,223.45,223.42,0.03378937]
[1757576845190,1.65141296,223.46,223.42,0.03378937]
[1757576846392,7.44,223.48,223.42,0.03378937]
[1757576846795,9.09141296,223.48,223.42,0.03378937]
[1757576847896,7.44,223.48,223.42,0.03378937]
[1757576848098,7.02,223.46,223.42,0.03378937]
[1757576848801,1.65141296,223.47,223.42,0.03378937]
[1757576849294,7.02,223.46,223.42,5.91378937]
[1757576849700,1.65141296,223.47,223.42,0.03378937]
[1757576850001,7.02,223.46,223.42,0.03378937]
[1757576850692,1.65141296,223.47,223.42,0.03378937]
[1757576851898,7.02,223.46,223.42,0.03378937]
[1757576852099,1.65141296,223.47,223.42,0.03378937]
[1757576852494,7.02,223.46,223.42,0.03378937]
[1757576852999,1.65141296,223.47,223.42,0.03378937]
[1757576853200,7.02,223.46,223.42,0.03378937]
[1757576853395,1.65141296,223.47,223.42,0.03378937]
[1757576853602,7.02,223.46,223.42,0.03378937]
[1757576853801,1.65141296,223.47,223.42,0.03378937]
[1757576853999,7.02,223.46,223.42,0.03378937]
[1757576854199,1.65141296,223.47,223.42,0.03378937]
[1757576854501,7.02,223.48,223.42,0.03378937]
[1757576858304,2.57709044,223.46,223.42,0.03378937]
[1757576858500,7.02,223.45,223.42,0.03378937]
[1757576861306,0.44,223.45,223.36,109.34]
[1757576861507,7.02,223.45,223.36,109.34]
[1757576862205,2.57709044,223.46,223.36,109.34]
[1757576862602,7.02,223.45,223.36,109.34]
[1757576863105,7.02,223.45,223.37,5.88]
[1757576869809,2.0,223.51,223.37,5.88]
[1757576870009,7.02,223.5,223.37,5.88]
[1757576872417,7.02,223.5,223.45,3.74326256]
[1757576874309,7.02,223.45,223.43,1.47620512]
[1757576874612,2.57709044,223.46,223.35,25.92]
[1757576875210,7.02,223.45,223.35,25.92]
[1757576876109,7.02,223.45,223.34,300.62]
[1757576876317,2.57709044,223.46,223.35,109.32]
[1757576876618,7.02,223.45,223.35,109.32]
[1757576877216,2.57709044,223.46,223.35,109.32]
[1757576877518,7.46,223.45,223.35,109.32]
[1757576877718,2.57709044,223.46,223.35,109.32]
[1757576878609,7.46,223.45,223.35,109.32]
[1757576878807,2.57709044,223.46,223.35,116.66]
[1757576879016,7.46,223.45,223.36,7.34]
[1757576885222,7.46,223.45,223.37,109.32]
[1757576888728,7.46,223.45,223.38,7.34]
[1757576891127,7.46,223.45,223.38,20.86]
[1757576891327,7.46,223.46,223.36,7.34]
[1757576891524,7.46,223.46,223.37,40.66]
[1757576891825,2.57709044,223.47,223.37,40.66]
[1757576892224,7.46,223.46,223.37,40.66]
[1757576892429,2.57709044,223.47,223.37,40.66]
[1757576893123,7.46,223.46,223.37,40.66]
[1757576893324,2.57709044,223.47,223.37,40.66]
[1757576893625,7.46,223.46,223.37,40.66]
[1757576893825,2.57709044,223.47,223.37,40.66]
[1757576894025,7.46,223.46,223.37,40.66]
[1757576894228,7.46,223.5,223.37,40.66]
[1757576894425,2.57709044,223.47,223.37,40.66]
[1757576894626,7.46,223.46,223.36,7.34]
[1757576906734,3.51017552,223.45,223.36,7.34]
[1757576906929,7.46,223.44,223.36,7.34]
[1757576909738,7.6,223.42,223.36,7.34]
[1757576909934,7.6,223.46,223.31,7.07]
[1757576910136,7.6,223.44,223.31,7.07]
[1757576910435,7.6,223.4,223.36,7.10132347]
[1757576910835,0.03416236,223.41,223.36,7.10132347]
[1757576911136,7.6,223.4,223.36,7.10132347]
[1757576911331,0.03416236,223.41,223.36,7.10132347]
[1757576911531,7.6,223.4,223.36,7.10132347]
[1757576911728,0.03416236,223.41,223.36,7.10132347]
[1757576912535,7.6,223.4,223.36,7.10132347]
[1757576912737,0.03416236,223.41,223.36,7.10132347]
[1757576912937,7.6,223.4,223.36,7.10132347]
[1757576913537,0.03416236,223.41,223.36,7.10132347]
[1757576914034,0.03416236,223.41,223.36,0.03132347]
[1757576914442,0.03416236,223.41,223.37,7.07]
[1757576914738,0.03416236,223.41,223.36,0.03132347]
[1757576914939,0.03416236,223.41,223.37,7.07]
[1757576916037,0.03416236,223.41,223.36,0.03132347]
[1757576916244,0.03416236,223.41,223.37,7.07]
[1757576916442,0.03416236,223.41,223.36,0.03132347]
[1757576916646,0.03416236,223.41,223.37,7.07]
[1757576917148,0.03416236,223.41,223.36,0.03132347]
[1757576918134,0.03416236,223.41,223.37,7.07]
[1757576918344,0.03416236,223.41,223.36,0.03132347]
[1757576918543,0.03416236,223.41,223.37,7.07]
[1757576918744,0.03416236,223.41,223.36,0.03132347]
[1757576919644,0.03416236,223.41,223.37,7.07]
[1757576919846,0.03416236,223.41,223.36,0.03132347]
[1757576920248,0.03416236,223.41,223.37,7.07]
[1757576920647,0.03416236,223.41,223.36,0.03132347]
[1757576921145,0.03416236,223.41,223.37,7.07]
[1757576921542,0.03416236,223.41,223.36,0.03132347]
[1757576921743,0.03416236,223.41,223.37,7.07]
[1757576922749,0.03416236,223.41,223.36,0.03132347]
[1757576922943,0.03416236,223.41,223.37,7.07]
[1757576923547,0.03416236,223.41,223.36,0.03132347]
[1757576924148,0.03416236,223.41,223.37,7.07]
[1757576924540,7.63416236,223.41,223.36,0.03132347]
[1757576925150,7.63416236,223.41,223.37,7.07]
[1757576925447,7.63416236,223.41,223.36,0.03132347]
[1757576925750,7.6,223.4,223.37,7.07]
[1757576926455,7.6,223.4,223.36,0.03132347]
[1757576927447,7.6,223.4,223.37,7.07]
[1757576928745,7.6,223.4,223.36,7.10132347]
[1757576928948,7.6,223.4,223.36,0.03132347]
[1757576929143,1.6841167,223.41,223.36,7.10132347]
[1757576929343,7.6,223.39,223.36,7.10132347]
[1757576929543,7.6,223.4,223.36,7.10132347]
[1757576929749,11.24681518,223.39,223.36,7.10132347]
[1757576930052,3.64681686,223.38,223.36,7.10132347]
[1757576930360,7.6,223.38,223.36,7.10132347]
[1757576931951,7.6,223.4,223.36,7.10132347]
[1757576933054,1.6841167,223.41,223.36,7.10132347]
[1757576933253,7.6,223.39,223.36,7.10132347]
[1757576935956,1.6841167,223.41,223.36,7.10132347]
[1757576936161,7.6,223.39,223.36,7.10132347]
[1757576936360,1.6841167,223.41,223.37,7.07]
[1757576936661,11.16414361,223.4,223.37,7.07]
[1757576936862,7.6,223.4,223.36,0.03132347]
[1757576937262,7.6,223.4,223.37,7.23]
[1757576939865,0.03416236,223.41,223.36,0.03132347]
[1757576940262,0.03416236,223.41,223.39,7.23]
[1757576940962,0.03416236,223.41,223.38,1.64995434]
[1757576941759,0.03416236,223.41,223.39,7.23]
[1757576941956,0.03416236,223.41,223.38,1.64995434]
[1757576942467,0.03416236,223.41,223.39,7.23]
[1757576942663,0.03416236,223.41,223.38,1.64995434]
[1757576943261,0.03416236,223.41,223.39,7.23]
[1757576946467,0.03416236,223.41,223.39,7.67]
[1757576951976,0.03416236,223.41,223.39,116.67]
[1757576952975,0.03416236,223.41,223.4,7.23]
[1757576954676,0.03416236,223.41,223.4,116.23]
[1757576956078,0.03416236,223.41,223.4,7.23]
[1757576956282,0.03416236,223.41,223.4,116.21]
[1757576974801,7.15416236,223.46,223.4,116.21]
[1757576976002,7.15416236,223.46,223.41,0.03387234]
[1757576976197,1.64995434,223.47,223.42,108.96]
[1757576976400,2.57739829,223.49,223.42,108.96]
[1757576977194,7.41,223.48,223.42,108.96]
[1757576977495,7.41,223.44,223.41,0.03387234]
[1757576977695,7.41,223.42,223.41,0.03387234]
[1757576978403,11.1644146,223.42,223.41,0.03387234]
[1757576978696,7.41,223.42,223.41,0.03387234]
[1757576979795,7.85,223.42,223.32,4.96739848]
[1757576980001,2.57739829,223.36,223.3,7.0]
[1757576980402,7.41,223.35,223.3,7.0]
[1757576980601,2.57739829,223.36,223.3,7.0]
[1757576981600,7.41,223.35,223.3,7.0]
[1757576982303,7.41,223.35,223.29,19.1]
[1757576982704,2.57739829,223.36,223.29,19.1]
[1757576982908,7.41,223.35,223.29,19.1]
[1757576984199,2.57739829,223.37,223.29,19.1]
[1757576984394,3.70092946,223.36,223.29,19.1]
[1757576984604,7.41,223.34,223.29,19.1]
[1757576984805,7.41,223.36,223.29,19.1]
[1757576985002,7.41,223.34,223.29,19.1]
[1757576985199,7.41,223.36,223.29,19.1]
[1757576985506,3.69922355,223.35,223.29,19.1]
[1757576985704,7.41,223.36,223.29,19.1]
[1757576985898,7.41,223.36,223.26,7.0]
[1757576985899,7.41,223.34,223.26,7.0]
[1757576986203,7.41,223.32,223.26,7.0]
[1757576991501,7.41,223.37,223.26,7.0]
[1757576995507,10.3,223.44,223.22,7.0]
[1757576995508,7.41,223.33,223.22,7.0]
[1757577003716,6.94,223.37,223.22,7.0]
[1757577014123,3.74010876,223.36,223.22,7.0]
[1757577014422,6.94,223.35,223.22,7.0]
[1757577021326,6.94,223.4,223.24,7.29]
[1757577021526,3.48092497,223.39,223.25,7.29]
[1757577021825,6.94,223.4,223.27,7.29]
[1757577022026,6.94,223.38,223.27,7.29]
[1757577024124,3.51129392,223.37,223.27,7.29]
[1757577024425,6.94,223.38,223.28,7.29]
[1757577024726,3.51129392,223.37,223.29,51.18]
[1757577024925,6.94,223.38,223.3,7.29]
[1757577025123,3.51129392,223.37,223.3,7.29]
[1757577025321,6.94,223.38,223.3,7.29]
[1757577025526,3.51163896,223.37,223.3,7.29]
[1757577025824,6.94,223.38,223.3,7.29]
[1757577030826,6.94,223.38,223.27,4.96739848]
[1757577031026,6.94,223.38,223.25,7.45109772]
[1757577031027,7.06,223.36,223.28,7.33]
[1757577035231,7.06,223.34,223.28,7.33]
[1757577035633,7.06,223.34,223.25,7.33]
[1757577036425,20.58,223.43,223.26,7.33]
[1757577036426,7.06,223.29,223.26,7.33]
[1757577038733,8.71201239,223.3,223.23,7.33]
[1757577043843,1.65201239,223.27,223.23,7.33]
[1757577044340,7.06,223.31,223.24,7.33]
[1757577044545,1.65201239,223.32,223.24,7.33]
[1757577045147,7.06,223.34,223.24,7.33]
[1757577045343,1.65201239,223.32,223.24,7.33]
[1757577048848,7.06,223.31,223.24,7.33]
[1757577049346,1.65201239,223.29,223.24,7.33]
[1757577049546,7.06,223.28,223.21,116.65]
[1757577050846,1.65201239,223.26,223.21,109.32]
[1757577051048,7.06,223.25,223.21,116.65]
[1757577052648,1.65201239,223.26,223.21,116.65]
[1757577052849,7.06,223.25,223.21,116.65]
[1757577054751,7.06,223.25,223.21,109.32]
[1757577054951,1.65201239,223.26,223.21,116.65]
[1757577055354,7.06,223.25,223.21,116.65]
[1757577055552,8.71201239,223.23,223.21,116.65]
[1757577055955,1.65201239,223.23,223.21,116.65]
[1757577056352,1.65201239,223.27,223.22,7.33]
[1757577056956,1.65201239,223.27,223.21,109.32]
[1757577057156,1.65201239,223.27,223.22,7.63]
[1757577057352,1.65201239,223.27,223.21,109.32]
[1757577057650,7.06,223.31,223.21,109.32]
[1757577057651,1.65201239,223.28,223.22,7.63]
[1757577058959,8.71201239,223.31,223.22,7.63]
[1757577060350,1.65201239,223.33,223.22,7.63]
[1757577061957,1.65201239,223.35,223.22,7.63]
[1757577065264,1.65201239,223.35,223.22,12.59739848]
[1757577065456,1.65201239,223.35,223.23,7.63]
[1757577065862,7.56,223.37,223.23,7.63]
[1757577066066,9.21201239,223.35,223.23,7.63]
[1757577066757,0.0321142,223.31,223.23,7.63]
[1757577066953,0.0321142,223.31,223.27,0.03064509]
[1757577067352,0.0321142,223.31,223.28,7.63]
[1757577067554,0.0321142,223.31,223.27,0.03064509]
[1757577067759,0.0321142,223.31,223.28,7.63]
[1757577067959,0.0321142,223.31,223.27,0.03064509]
[1757577068465,0.0321142,223.31,223.28,7.63]
[1757577068965,0.0321142,223.31,223.27,0.03064509]
[1757577069166,0.0321142,223.31,223.28,7.63]
[1757577069664,0.0321142,223.31,223.27,0.03064509]
[1757577069860,0.0321142,223.31,223.28,7.63]
[1757577070062,0.0321142,223.31,223.27,0.03064509]
[1757577070362,0.0321142,223.31,223.28,7.63]
[1757577070564,0.0321142,223.31,223.27,0.03064509]
[1757577071166,0.0321142,223.31,223.28,7.63]
[1757577071866,0.0321142,223.31,223.27,0.03064509]
[1757577072067,0.0321142,223.31,223.28,7.63]
[1757577072363,0.0321142,223.31,223.27,0.03064509]
[1757577072764,0.0321142,223.31,223.28,7.63]
[1757577073158,0.0321142,223.31,223.27,0.03064509]
[1757577073562,0.0321142,223.31,223.28,7.63]
[1757577073962,0.0321142,223.31,223.27,0.03064509]
[1757577074368,0.0321142,223.31,223.28,7.63]
[1757577075567,0.0321142,223.31,223.27,0.03064509]
[1757577075768,0.0321142,223.31,223.28,7.63]
[1757577076067,0.0321142,223.31,223.27,0.03064509]
[1757577076774,0.0321142,223.31,223.28,7.63]
[1757577077067,0.0321142,223.31,223.27,0.03064509]
[1757577077267,0.0321142,223.31,223.28,7.63]
[1757577077461,0.0321142,223.31,223.27,0.03064509]
[1757577077859,0.0321142,223.31,223.28,7.63]
[1757577079266,0.0321142,223.31,223.27,0.03064509]
[1757577079672,0.0321142,223.31,223.28,7.63]
[1757577080065,0.0321142,223.31,223.27,0.03064509]
[1757577080471,0.0321142,223.31,223.28,7.63]
[1757577080870,0.0321142,223.31,223.27,0.03064509]
[1757577081073,0.0321142,223.31,223.28,7.63]
[1757577081369,0.0321142,223.31,223.27,0.03064509]
[1757577081570,0.0321142,223.31,223.28,7.63]
[1757577081771,0.0321142,223.31,223.27,0.03064509]
[1757577081973,0.0321142,223.31,223.28,7.63]
[1757577082171,0.0321142,223.31,223.27,0.03064509]
[1757577082567,0.0321142,223.31,223.28,7.63]
[1757577082773,0.0321142,223.31,223.27,0.03064509]
[1757577083072,0.0321142,223.31,223.28,7.63]
[1757577083272,0.0321142,223.31,223.27,0.03064509]
[1757577084073,0.0321142,223.31,223.28,7.63]
[1757577084774,0.0321142,223.31,223.3,7.63]
[1757577085166,1.65201239,223.38,223.3,7.63]
[1757577085573,1.65201239,223.38,223.3,20.11]
[1757577086377,7.56,223.37,223.32,0.02867859]
[1757577087176,9.23201239,223.38,223.32,0.02867859]
[1757577088674,7.58,223.38,223.32,0.02867859]
[1757577088979,9.23201239,223.38,223.32,7.54867859]
[1757577095983,1.65201239,223.41,223.32,7.54867859]
[1757577096276,7.58,223.43,223.32,7.54867859]
[1757577108791,7.58,223.47,223.34,7.52]
[1757577108989,7.58,223.45,223.34,7.52]
[1757577109194,3.50940143,223.44,223.34,7.52]
[1757577109491,11.08968808,223.43,223.37,0.0297754]
[1757577109689,7.58,223.41,223.37,0.0297754]
[1757577111694,2.57790642,223.4,223.37,0.0297754]
[1757577111895,7.58,223.39,223.37,0.0297754]
[1757577112986,0.44,223.39,223.28,23.4]
[1757577113194,7.58,223.39,223.28,23.4]
[1757577113384,2.6081824,223.4,223.28,23.4]
[1757577113585,3.51930472,223.39,223.28,23.4]
[1757577113788,7.58,223.39,223.28,23.4]
[1757577113995,3.51933346,223.38,223.28,23.4]
[1757577114195,2.6081824,223.4,223.31,0.03409671]
[1757577114396,11.09954398,223.39,223.31,0.03409671]
[1757577114597,7.58,223.37,223.31,0.03409671]
[1757577123097,7.25,223.35,223.31,0.03409671]
[1757577129302,7.25,223.33,223.31,0.03409671]
[1757577133609,7.69,223.33,223.31,0.03409671]